[Event "*** SCC Grand Prix: Titled Tuesday Blitz"]
[Site "Chess.com"]
[Date "2020.07.21"]
[Round "6"]
[White "Margarita2907"]
[Black "MendozaDavid2000"]
[Result "1-0"]
[WhiteElo "2105"]
[BlackElo "2265"]
[TimeControl "180+1"]
[EndTime "11:06:35 PDT"]
[Termination "Margarita2907 won on time"]

1. e4 {[%clk 0:03:00.9]} 1... c5 {[%clk 0:02:58.8]} 2. Nf3 {[%clk 0:03:00.5]}
2... d6 {[%clk 0:02:59.2]} 3. d4 {[%clk 0:03:00.4]} 3... cxd4 {[%clk 0:02:59.7]}
4. Nxd4 {[%clk 0:03:00.6]} 4... Nf6 {[%clk 0:03:00.2]} 5. Nc3 {[%clk 0:03:00.7]}
5... a6 {[%clk 0:03:00.4]} 6. Be2 {[%clk 0:03:00.8]} 6... e5 {[%clk 0:02:53.5]}
7. Nb3 {[%clk 0:03:00]} 7... Be6 {[%clk 0:02:52.1]} 8. O-O {[%clk 0:02:59.4]}
8... Nbd7 {[%clk 0:02:46.5]} 9. Be3 {[%clk 0:02:56.9]} 9... Qc7 {[%clk
0:02:45.9]} 10. Qd3 {[%clk 0:02:55.7]} 10... b5 {[%clk 0:02:44]} 11. Nd5 {[%clk
0:02:48.9]} 11... Bxd5 {[%clk 0:02:39.7]} 12. exd5 {[%clk 0:02:46.7]} 12... Be7
{[%clk 0:02:39.4]} 13. a4 {[%clk 0:02:44.4]} 13... e4 {[%clk 0:02:03.8]} 14. Qd2
{[%clk 0:02:38.6]} 14... Qb7 {[%clk 0:01:20.3]} 15. axb5 {[%clk 0:02:32.8]}
15... axb5 {[%clk 0:01:17]} 16. Rxa8+ {[%clk 0:02:31]} 16... Qxa8 {[%clk
0:01:17.1]} 17. Bxb5 {[%clk 0:02:28.2]} 17... Qxd5 {[%clk 0:01:13.3]} 18. Bxd7+
{[%clk 0:02:13.4]} 18... Kxd7 {[%clk 0:01:13.3]} 19. Qb4 {[%clk 0:02:07.5]}
19... Rc8 {[%clk 0:01:10.7]} 20. Nd4 {[%clk 0:02:01.6]} 20... Qc4 {[%clk
0:01:00.4]} 21. Qb7+ {[%clk 0:01:57.6]} 21... Rc7 {[%clk 0:00:59.7]} 22. Qb6
{[%clk 0:01:53.2]} 22... Nd5 {[%clk 0:00:57.8]} 23. Qa5 {[%clk 0:01:47.4]} 23...
Nxe3 {[%clk 0:00:44]} 24. fxe3 {[%clk 0:01:46.1]} 24... Bf6 {[%clk 0:00:44.3]}
25. c3 {[%clk 0:01:38.4]} 25... Bxd4 {[%clk 0:00:21.4]} 26. cxd4 {[%clk
0:01:37.8]} 26... g6 {[%clk 0:00:18]} 27. Qg5 {[%clk 0:01:32.6]} 27... f5 {[%clk
0:00:17.7]} 28. Qf6 {[%clk 0:01:25.3]} 28... Qe6 {[%clk 0:00:16.8]} 29. Qg7+
{[%clk 0:01:22.7]} 29... Qe7 {[%clk 0:00:12.7]} 30. Qg8 {[%clk 0:01:12.8]} 30...
Rc8 {[%clk 0:00:11.3]} 31. Qd5 {[%clk 0:01:11.6]} 31... Qe6 {[%clk 0:00:10.4]}
32. Qb7+ {[%clk 0:01:06.4]} 32... Rc7 {[%clk 0:00:10.4]} 33. Qb5+ {[%clk
0:01:05.7]} 33... Ke7 {[%clk 0:00:10.1]} 34. Ra1 {[%clk 0:00:59.9]} 34... Qc4
{[%clk 0:00:09.8]} 35. Qb8 {[%clk 0:00:55.6]} 35... Kf7 {[%clk 0:00:01.1]} 36.
Qh8 {[%clk 0:00:45.8]} 1-0

[Event "*** SCC Grand Prix: Titled Tuesday Blitz"]
[Site "Chess.com"]
[Date "2020.07.21"]
[Round "6"]
[White "bazar-wokzal"]
[Black "chesslh19"]
[Result "0-1"]
[WhiteElo "2412"]
[BlackElo "2175"]
[TimeControl "180+1"]
[EndTime "11:06:36 PDT"]
[Termination "chesslh19 won on time"]

1. e4 {[%clk 0:03:00.9]} 1... c5 {[%clk 0:02:59.6]} 2. c3 {[%clk 0:03:00.8]}
2... Nf6 {[%clk 0:02:59]} 3. e5 {[%clk 0:03:01.2]} 3... Nd5 {[%clk 0:02:59.5]}
4. d4 {[%clk 0:03:01.6]} 4... cxd4 {[%clk 0:03:00.4]} 5. cxd4 {[%clk 0:03:01.6]}
5... d6 {[%clk 0:03:00.1]} 6. Bc4 {[%clk 0:03:01.2]} 6... Nb6 {[%clk 0:02:59.6]}
7. Bb3 {[%clk 0:03:01.4]} 7... Nc6 {[%clk 0:03:00.2]} 8. e6 {[%clk 0:03:01.1]}
8... fxe6 {[%clk 0:02:34]} 9. Nf3 {[%clk 0:03:00.5]} 9... g6 {[%clk 0:02:04]}
10. O-O {[%clk 0:01:53.7]} 10... Bg7 {[%clk 0:02:01.5]} 11. Re1 {[%clk
0:01:28.8]} 11... O-O {[%clk 0:01:10.4]} 12. Nc3 {[%clk 0:01:29.7]} 12... h6
{[%clk 0:00:47.3]} 13. Be3 {[%clk 0:01:12.3]} 13... Kh7 {[%clk 0:00:43.7]} 14.
a3 {[%clk 0:01:08]} 14... d5 {[%clk 0:00:25.7]} 15. Bc2 {[%clk 0:01:05.6]} 15...
Nc4 {[%clk 0:00:13]} 16. Nh4 {[%clk 0:00:57.3]} 16... Rf5 {[%clk 0:00:11.2]} 17.
g4 {[%clk 0:00:42.7]} 17... Rf6 {[%clk 0:00:10.7]} 18. b3 {[%clk 0:00:25.4]}
18... Nxe3 {[%clk 0:00:09.2]} 19. fxe3 {[%clk 0:00:25.5]} 19... Bd7 {[%clk
0:00:09.8]} 20. Qd3 {[%clk 0:00:24.7]} 20... Be8 {[%clk 0:00:09.5]} 21. Rf1
{[%clk 0:00:22]} 21... Bf7 {[%clk 0:00:08.9]} 22. Rxf6 {[%clk 0:00:05.4]} 22...
exf6 {[%clk 0:00:09.8]} 0-1

[Event "*** SCC Grand Prix: Titled Tuesday Blitz"]
[Site "Chess.com"]
[Date "2020.07.21"]
[Round "6"]
[White "vinniethepooh"]
[Black "Crazy_girl99"]
[Result "1-0"]
[WhiteElo "2685"]
[BlackElo "2480"]
[TimeControl "180+1"]
[EndTime "11:06:37 PDT"]
[Termination "vinniethepooh won on time"]

1. d4 {[%clk 0:03:00.9]} 1... d5 {[%clk 0:02:59.1]} 2. c4 {[%clk 0:03:01.2]}
2... e6 {[%clk 0:02:59.5]} 3. Nc3 {[%clk 0:03:02.1]} 3... Nf6 {[%clk 0:02:58.6]}
4. cxd5 {[%clk 0:03:02.6]} 4... exd5 {[%clk 0:02:58.2]} 5. Bg5 {[%clk
0:03:02.9]} 5... Bb4 {[%clk 0:02:57.6]} 6. e3 {[%clk 0:03:03.1]} 6... Nbd7
{[%clk 0:02:56]} 7. Bd3 {[%clk 0:03:02.7]} 7... h6 {[%clk 0:02:55.6]} 8. Bh4
{[%clk 0:03:02.6]} 8... c5 {[%clk 0:02:46.5]} 9. Ne2 {[%clk 0:03:02.6]} 9... O-O
{[%clk 0:02:45.3]} 10. O-O {[%clk 0:03:00.6]} 10... Bxc3 {[%clk 0:02:17.3]} 11.
bxc3 {[%clk 0:02:56.2]} 11... b6 {[%clk 0:02:12.6]} 12. f3 {[%clk 0:02:54.7]}
12... Bb7 {[%clk 0:02:09.4]} 13. Bf2 {[%clk 0:02:39.8]} 13... Re8 {[%clk
0:02:07.8]} 14. Ng3 {[%clk 0:02:39.7]} 14... Qc7 {[%clk 0:01:56.3]} 15. Re1
{[%clk 0:02:25.5]} 15... Rad8 {[%clk 0:01:53]} 16. Rc1 {[%clk 0:02:23.5]} 16...
Nf8 {[%clk 0:01:49.2]} 17. Bb1 {[%clk 0:02:08.7]} 17... Ne6 {[%clk 0:01:45.2]}
18. Qd3 {[%clk 0:02:07.7]} 18... a6 {[%clk 0:01:35.6]} 19. Nf5 {[%clk
0:02:03.9]} 19... Nf8 {[%clk 0:01:09]} 20. Bh4 {[%clk 0:01:57.4]} 20... Re6
{[%clk 0:01:03.5]} 21. g4 {[%clk 0:01:07.9]} 21... Ng6 {[%clk 0:00:55.8]} 22.
Bg3 {[%clk 0:01:07.4]} 22... Qd7 {[%clk 0:00:51.7]} 23. h4 {[%clk 0:01:07.8]}
23... Rde8 {[%clk 0:00:50.2]} 24. Kf2 {[%clk 0:01:01.1]} 24... Bc8 {[%clk
0:00:23]} 25. h5 {[%clk 0:00:50.9]} 25... Nf8 {[%clk 0:00:22.5]} 26. Bf4 {[%clk
0:00:45.7]} 26... N6h7 {[%clk 0:00:20]} 27. Rg1 {[%clk 0:00:38]} 27... a5 {[%clk
0:00:15.2]} 28. Rg3 {[%clk 0:00:36.9]} 28... Rf6 {[%clk 0:00:11.3]} 29. Rcg1
{[%clk 0:00:35.5]} 29... Kh8 {[%clk 0:00:09.3]} 30. Be5 {[%clk 0:00:34.6]} 1-0

[Event "*** SCC Grand Prix: Titled Tuesday Blitz"]
[Site "Chess.com"]
[Date "2020.07.21"]
[Round "6"]
[White "RaphCamora"]
[Black "HanSchut"]
[Result "1-0"]
[WhiteElo "2445"]
[BlackElo "2308"]
[TimeControl "180+1"]
[EndTime "11:06:37 PDT"]
[Termination "RaphCamora won on time"]

1. Nf3 {[%clk 0:03:00.9]} 1... c5 {[%clk 0:02:59.1]} 2. g3 {[%clk 0:03:00.3]}
2... Nc6 {[%clk 0:02:59.3]} 3. Bg2 {[%clk 0:02:59.6]} 3... Nf6 {[%clk
0:02:59.7]} 4. O-O {[%clk 0:02:59.4]} 4... d5 {[%clk 0:03:00.5]} 5. d4 {[%clk
0:02:56.6]} 5... cxd4 {[%clk 0:02:44.5]} 6. Nxd4 {[%clk 0:02:54.9]} 6... g6
{[%clk 0:02:39.5]} 7. c4 {[%clk 0:02:52.3]} 7... Bg7 {[%clk 0:02:38.9]} 8. cxd5
{[%clk 0:02:50.1]} 8... Nxd5 {[%clk 0:02:38.6]} 9. Nb5 {[%clk 0:02:40.5]} 9...
a6 {[%clk 0:02:01.5]} 10. Qxd5 {[%clk 0:02:35.2]} 10... axb5 {[%clk 0:01:53.4]}
11. Qxb5 {[%clk 0:02:34.7]} 11... O-O {[%clk 0:01:51.6]} 12. Nc3 {[%clk
0:02:31.7]} 12... Nd4 {[%clk 0:01:49]} 13. Qd3 {[%clk 0:02:30.6]} 13... Nb3
{[%clk 0:01:24.6]} 14. Rb1 {[%clk 0:02:17.7]} 14... Qxd3 {[%clk 0:01:19]} 15.
exd3 {[%clk 0:02:18.6]} 15... Nc5 {[%clk 0:01:10.8]} 16. Rd1 {[%clk 0:02:16]}
16... Bxc3 {[%clk 0:00:37.2]} 17. bxc3 {[%clk 0:02:15.3]} 17... Rxa2 {[%clk
0:00:37.9]} 18. Be3 {[%clk 0:02:13.9]} 18... Na4 {[%clk 0:00:32.9]} 19. Bd4
{[%clk 0:02:13.6]} 19... Rd8 {[%clk 0:00:19.9]} 20. Ra1 {[%clk 0:02:13.3]} 20...
Rxa1 {[%clk 0:00:17.8]} 21. Rxa1 {[%clk 0:02:14.2]} 21... Nb2 {[%clk 0:00:18.1]}
22. Be4 {[%clk 0:02:08.2]} 22... f5 {[%clk 0:00:17]} 23. Bf3 {[%clk 0:02:02.2]}
23... Nxd3 {[%clk 0:00:16.8]} 24. Ra8 {[%clk 0:02:01]} 24... Re8 {[%clk
0:00:09.8]} 25. Bxb7 {[%clk 0:01:57.7]} 25... Bd7 {[%clk 0:00:10.2]} 26. Bd5+
{[%clk 0:01:55.1]} 26... Kf8 {[%clk 0:00:09.2]} 27. Ra7 {[%clk 0:01:52.8]} 27...
Bb5 {[%clk 0:00:03]} 28. c4 {[%clk 0:01:44.7]} 28... Nb4 {[%clk 0:00:03.2]} 29.
cxb5 {[%clk 0:01:27.6]} 29... Nxd5 {[%clk 0:00:03.4]} 30. Be5 {[%clk 0:01:28.2]}
30... Rd8 {[%clk 0:00:01.6]} 31. Kg2 {[%clk 0:01:16.8]} 31... Kf7 {[%clk
0:00:02.3]} 32. Ra6 {[%clk 0:01:12.3]} 32... Nb4 {[%clk 0:00:01.3]} 33. Ra4
{[%clk 0:00:43.3]} 33... Nd3 {[%clk 0:00:01.1]} 34. Rd4 {[%clk 0:00:40.9]} 1-0

[Event "*** SCC Grand Prix: Titled Tuesday Blitz"]
[Site "Chess.com"]
[Date "2020.07.21"]
[Round "6"]
[White "SantoBlue"]
[Black "gena217"]
[Result "1-0"]
[WhiteElo "2741"]
[BlackElo "2892"]
[TimeControl "180+1"]
[EndTime "11:06:38 PDT"]
[Termination "SantoBlue won on time"]

1. e4 {[%clk 0:03:00.9]} 1... c6 {[%clk 0:02:55.4]} 2. d3 {[%clk 0:03:00.3]}
2... d5 {[%clk 0:02:56.3]} 3. Nf3 {[%clk 0:03:00.7]} 3... Qc7 {[%clk 0:02:50.9]}
4. g3 {[%clk 0:02:58.4]} 4... dxe4 {[%clk 0:02:46]} 5. dxe4 {[%clk 0:02:57.8]}
5... e5 {[%clk 0:02:46.6]} 6. Bg2 {[%clk 0:02:55.1]} 6... Nf6 {[%clk 0:02:45.5]}
7. O-O {[%clk 0:02:55.6]} 7... Be7 {[%clk 0:02:44.8]} 8. Nbd2 {[%clk 0:02:55.5]}
8... O-O {[%clk 0:02:43.6]} 9. Nc4 {[%clk 0:02:55.7]} 9... Nbd7 {[%clk
0:02:43.1]} 10. Nh4 {[%clk 0:02:55.3]} 10... Nb6 {[%clk 0:02:36.3]} 11. Ne3
{[%clk 0:02:53.3]} 11... Rd8 {[%clk 0:02:34.5]} 12. Qe2 {[%clk 0:02:52.3]} 12...
Be6 {[%clk 0:02:30.9]} 13. b3 {[%clk 0:02:48.4]} 13... a5 {[%clk 0:02:26.7]} 14.
a4 {[%clk 0:02:47.9]} 14... Bf8 {[%clk 0:02:25.9]} 15. Bb2 {[%clk 0:02:47.8]}
15... Nbd7 {[%clk 0:02:20.5]} 16. f4 {[%clk 0:02:45.8]} 16... exf4 {[%clk
0:01:57]} 17. gxf4 {[%clk 0:02:46.7]} 17... Nc5 {[%clk 0:01:41.5]} 18. Bxf6
{[%clk 0:02:18.3]} 18... gxf6 {[%clk 0:01:39.9]} 19. Nhf5 {[%clk 0:02:15]} 19...
Kh8 {[%clk 0:01:36.1]} 20. Qh5 {[%clk 0:02:11.7]} 20... Bxf5 {[%clk 0:00:49.3]}
21. Nxf5 {[%clk 0:02:10.8]} 21... Ne6 {[%clk 0:00:49.8]} 22. Qh4 {[%clk
0:02:07.7]} 22... Bg7 {[%clk 0:00:40.3]} 23. Rf3 {[%clk 0:02:07.4]} 23... Rg8
{[%clk 0:00:34.5]} 24. Rh3 {[%clk 0:02:03.1]} 24... Nf8 {[%clk 0:00:35]} 25. Rf1
{[%clk 0:01:56.7]} 25... Rd8 {[%clk 0:00:32.5]} 26. e5 {[%clk 0:01:49.1]} 26...
fxe5 {[%clk 0:00:27.8]} 27. fxe5 {[%clk 0:01:44.2]} 27... Bxe5 {[%clk
0:00:25.7]} 28. Nh6 {[%clk 0:01:42.5]} 28... Rd7 {[%clk 0:00:14.2]} 29. Nxg8
{[%clk 0:01:40.6]} 29... Kxg8 {[%clk 0:00:15.1]} 30. Be4 {[%clk 0:01:33.9]}
30... f6 {[%clk 0:00:15.1]} 31. Kh1 {[%clk 0:01:33.7]} 31... Rg7 {[%clk
0:00:14.1]} 32. Bd3 {[%clk 0:01:29.8]} 32... Qd7 {[%clk 0:00:11.2]} 33. Qc4+
{[%clk 0:01:29.1]} 33... Kh8 {[%clk 0:00:10.7]} 34. Rhf3 {[%clk 0:01:26.1]}
34... Qd6 {[%clk 0:00:08.3]} 35. Qh4 {[%clk 0:01:25.1]} 35... Ng6 {[%clk
0:00:06.8]} 36. Qe4 {[%clk 0:01:18.9]} 36... Qe7 {[%clk 0:00:04.1]} 37. Rg1
{[%clk 0:01:15]} 37... Nf8 {[%clk 0:00:03.8]} 38. Rxg7 {[%clk 0:01:13]} 38...
Qxg7 {[%clk 0:00:04.7]} 39. Rf2 {[%clk 0:01:08]} 39... Ne6 {[%clk 0:00:04.2]}
40. Qf5 {[%clk 0:01:05.4]} 40... Qe7 {[%clk 0:00:03.4]} 41. Rg2 {[%clk
0:00:57.9]} 41... Nf8 {[%clk 0:00:01.6]} 42. Rg4 {[%clk 0:00:55.5]} 1-0

[Event "*** SCC Grand Prix: Titled Tuesday Blitz"]
[Site "Chess.com"]
[Date "2020.07.21"]
[Round "6"]
[White "jsl796"]
[Black "Efremov_Vlad"]
[Result "1-0"]
[WhiteElo "2885"]
[BlackElo "2192"]
[TimeControl "180+1"]
[EndTime "11:06:39 PDT"]
[Termination "jsl796 won by resignation"]

1. d4 {[%clk 0:03:00.9]} 1... d5 {[%clk 0:02:59.3]} 2. c4 {[%clk 0:03:00.2]}
2... e6 {[%clk 0:02:59.4]} 3. Nc3 {[%clk 0:02:59.4]} 3... Bb4 {[%clk 0:02:58]}
4. cxd5 {[%clk 0:02:59.4]} 4... exd5 {[%clk 0:02:57.5]} 5. Bf4 {[%clk
0:02:59.8]} 5... c5 {[%clk 0:02:49.7]} 6. dxc5 {[%clk 0:02:59.3]} 6... Nf6
{[%clk 0:02:38.2]} 7. e3 {[%clk 0:02:49.1]} 7... Nc6 {[%clk 0:02:35.3]} 8. Bb5
{[%clk 0:02:47.7]} 8... O-O {[%clk 0:02:34.3]} 9. Bd6 {[%clk 0:02:43.6]} 9...
Re8 {[%clk 0:02:33.2]} 10. Ne2 {[%clk 0:02:42.5]} 10... Ne4 {[%clk 0:01:51.9]}
11. O-O {[%clk 0:02:37.1]} 11... Nxd6 {[%clk 0:01:51.8]} 12. cxd6 {[%clk
0:02:36.2]} 12... Bxd6 {[%clk 0:01:36.6]} 13. Qxd5 {[%clk 0:02:32.4]} 13... Be6
{[%clk 0:01:34.2]} 14. Qh5 {[%clk 0:02:31.4]} 14... Qc7 {[%clk 0:01:28.7]} 15.
Rac1 {[%clk 0:02:25.3]} 15... a6 {[%clk 0:01:23.5]} 16. Bxc6 {[%clk 0:02:20.5]}
16... Qxc6 {[%clk 0:01:11.9]} 17. Nd4 {[%clk 0:02:18.2]} 17... Qb6 {[%clk
0:01:03]} 18. Nxe6 {[%clk 0:01:42.1]} 18... Rxe6 {[%clk 0:01:03.9]} 19. Qe2
{[%clk 0:01:40.5]} 19... Qa5 {[%clk 0:00:43.9]} 20. Rfd1 {[%clk 0:01:37.9]}
20... Qg5 {[%clk 0:00:35.9]} 21. Rxd6 {[%clk 0:01:19.4]} 21... Rxd6 {[%clk
0:00:29.3]} 22. Ne4 {[%clk 0:01:18.9]} 22... Qg6 {[%clk 0:00:26]} 23. Nxd6
{[%clk 0:01:18.4]} 23... Qxd6 {[%clk 0:00:26.9]} 24. g3 {[%clk 0:01:16.8]} 24...
b5 {[%clk 0:00:26.2]} 25. Qf3 {[%clk 0:01:15.8]} 25... Rd8 {[%clk 0:00:20.3]}
26. Rc6 {[%clk 0:01:11.1]} 26... Qb4 {[%clk 0:00:20.7]} 27. Rc7 {[%clk 0:01:02]}
27... Rf8 {[%clk 0:00:15.1]} 28. b3 {[%clk 0:00:54.2]} 28... a5 {[%clk
0:00:14.7]} 29. Kg2 {[%clk 0:00:53.5]} 29... a4 {[%clk 0:00:14.8]} 30. Qd5
{[%clk 0:00:53.6]} 30... axb3 {[%clk 0:00:13.2]} 31. axb3 {[%clk 0:00:53.4]}
31... g6 {[%clk 0:00:12.4]} 32. Rb7 {[%clk 0:00:53.2]} 32... Kg7 {[%clk
0:00:11.7]} 33. Qe5+ {[%clk 0:00:52.5]} 33... Kg8 {[%clk 0:00:10.3]} 34. Rxb5
{[%clk 0:00:51.6]} 34... Qd2 {[%clk 0:00:10.7]} 35. Rb8 {[%clk 0:00:51]} 35...
Qc2 {[%clk 0:00:08.6]} 36. Rxf8+ {[%clk 0:00:49.2]} 36... Kxf8 {[%clk
0:00:07.4]} 37. Qd5 {[%clk 0:00:48.9]} 37... Qb2 {[%clk 0:00:04.4]} 38. Qd8+
{[%clk 0:00:48.6]} 38... Kg7 {[%clk 0:00:04.4]} 39. Qd4+ {[%clk 0:00:49.5]}
39... Qxd4 {[%clk 0:00:03.5]} 40. exd4 {[%clk 0:00:50.4]} 40... Kf6 {[%clk
0:00:04]} 41. Kf3 {[%clk 0:00:49.7]} 41... Ke6 {[%clk 0:00:04.6]} 42. Ke4 {[%clk
0:00:49.9]} 42... f5+ {[%clk 0:00:05.5]} 43. Kd3 {[%clk 0:00:49.7]} 43... Kd5
{[%clk 0:00:06.4]} 44. b4 {[%clk 0:00:50.2]} 44... Kc6 {[%clk 0:00:06.9]} 45.
Kc4 {[%clk 0:00:50.2]} 45... Kd6 {[%clk 0:00:07.1]} 46. d5 {[%clk 0:00:50.6]}
1-0

[Event "*** SCC Grand Prix: Titled Tuesday Blitz"]
[Site "Chess.com"]
[Date "2020.07.21"]
[Round "6"]
[White "chessfrendz"]
[Black "boasovietica"]
[Result "0-1"]
[WhiteElo "2252"]
[BlackElo "2419"]
[TimeControl "180+1"]
[EndTime "11:06:39 PDT"]
[Termination "boasovietica won by resignation"]

1. d4 {[%clk 0:03:00.9]} 1... Nf6 {[%clk 0:02:58.1]} 2. Nf3 {[%clk 0:03:00.2]}
2... g6 {[%clk 0:02:58.2]} 3. c4 {[%clk 0:02:59.4]} 3... Bg7 {[%clk 0:02:58.5]}
4. Nc3 {[%clk 0:03:00]} 4... O-O {[%clk 0:02:57.7]} 5. e4 {[%clk 0:03:00.5]}
5... d6 {[%clk 0:02:58]} 6. Be2 {[%clk 0:03:00.9]} 6... Bg4 {[%clk 0:02:58.3]}
7. O-O {[%clk 0:02:56.6]} 7... Nfd7 {[%clk 0:02:58.2]} 8. Be3 {[%clk 0:02:55.9]}
8... c5 {[%clk 0:02:57.9]} 9. Rc1 {[%clk 0:02:50]} 9... Nc6 {[%clk 0:02:57.5]}
10. d5 {[%clk 0:02:43.8]} 10... Bxf3 {[%clk 0:02:50]} 11. Bxf3 {[%clk 0:02:40]}
11... Nd4 {[%clk 0:02:49.9]} 12. Bg4 {[%clk 0:02:39.1]} 12... a6 {[%clk
0:02:44.7]} 13. Ne2 {[%clk 0:02:27.9]} 13... Nxe2+ {[%clk 0:02:26.7]} 14. Bxe2
{[%clk 0:02:21.5]} 14... b5 {[%clk 0:02:11.8]} 15. b3 {[%clk 0:02:20.3]} 15...
b4 {[%clk 0:02:08.1]} 16. Qd2 {[%clk 0:02:18.2]} 16... a5 {[%clk 0:02:08.3]} 17.
Bh6 {[%clk 0:02:17.2]} 17... a4 {[%clk 0:02:05]} 18. Bxg7 {[%clk 0:02:13.5]}
18... Kxg7 {[%clk 0:02:05]} 19. bxa4 {[%clk 0:02:10.5]} 19... Rxa4 {[%clk
0:02:00.5]} 20. Bd1 {[%clk 0:02:10.3]} 20... Ra3 {[%clk 0:01:57.4]} 21. Bb3
{[%clk 0:02:09.5]} 21... Nb6 {[%clk 0:01:48]} 22. f4 {[%clk 0:02:08.5]} 22...
Na4 {[%clk 0:01:44.2]} 23. Rf3 {[%clk 0:02:04.3]} 23... h6 {[%clk 0:01:35.1]}
24. f5 {[%clk 0:02:00.1]} 24... g5 {[%clk 0:01:33.4]} 25. f6+ {[%clk 0:01:59.5]}
25... exf6 {[%clk 0:01:32.3]} 26. Rcf1 {[%clk 0:01:57.7]} 26... Nc3 {[%clk
0:01:25.9]} 27. Qc2 {[%clk 0:01:26]} 27... Re8 {[%clk 0:01:18.5]} 28. Rxf6
{[%clk 0:01:20.5]} 28... Qxf6 {[%clk 0:01:17.8]} 29. Rxf6 {[%clk 0:01:18.5]}
29... Kxf6 {[%clk 0:01:18]} 30. Qf2+ {[%clk 0:01:12.2]} 30... Kg7 {[%clk
0:01:16.2]} 31. Qf5 {[%clk 0:01:10.6]} 31... Rxe4 {[%clk 0:01:04.2]} 32. Qd7
{[%clk 0:01:02]} 32... Nxa2 {[%clk 0:00:45.2]} 33. Bxa2 {[%clk 0:00:57]} 33...
Rxa2 {[%clk 0:00:43.1]} 34. h4 {[%clk 0:00:54.9]} 34... b3 {[%clk 0:00:36.9]}
35. hxg5 {[%clk 0:00:50.4]} 35... hxg5 {[%clk 0:00:36.9]} 36. Qf5 {[%clk
0:00:45.5]} 36... Re5 {[%clk 0:00:34.2]} 37. Qb1 {[%clk 0:00:43]} 37... Ree2
{[%clk 0:00:29.1]} 38. Qxb3 {[%clk 0:00:41.3]} 38... Rxg2+ {[%clk 0:00:29.2]}
39. Kf1 {[%clk 0:00:40.5]} 39... Rgc2 {[%clk 0:00:22.7]} 40. Qb1 {[%clk
0:00:35.4]} 40... Rf2+ {[%clk 0:00:22.4]} 41. Kg1 {[%clk 0:00:35.1]} 41... Rg2+
{[%clk 0:00:22.2]} 42. Kh1 {[%clk 0:00:35.4]} 42... Rh2+ {[%clk 0:00:22.5]} 43.
Kg1 {[%clk 0:00:36.1]} 43... Rag2+ {[%clk 0:00:22.9]} 44. Kf1 {[%clk 0:00:36.3]}
44... Rh1+ {[%clk 0:00:23.4]} 0-1

[Event "*** SCC Grand Prix: Titled Tuesday Blitz"]
[Site "Chess.com"]
[Date "2020.07.21"]
[Round "6"]
[White "vanea_03"]
[Black "TigrVShlyape"]
[Result "0-1"]
[WhiteElo "2708"]
[BlackElo "2860"]
[TimeControl "180+1"]
[EndTime "11:06:40 PDT"]
[Termination "TigrVShlyape won by resignation"]

1. d4 {[%clk 0:03:00.9]} 1... Nf6 {[%clk 0:02:53.6]} 2. c4 {[%clk 0:03:01]} 2...
g6 {[%clk 0:02:52.7]} 3. g3 {[%clk 0:03:01.2]} 3... Bg7 {[%clk 0:02:52.1]} 4.
Bg2 {[%clk 0:03:01.6]} 4... O-O {[%clk 0:02:51.8]} 5. Nc3 {[%clk 0:03:02.2]}
5... d6 {[%clk 0:02:51.8]} 6. Nf3 {[%clk 0:03:02]} 6... Nc6 {[%clk 0:02:50.8]}
7. O-O {[%clk 0:02:58.7]} 7... e5 {[%clk 0:02:49.8]} 8. dxe5 {[%clk 0:02:57.4]}
8... dxe5 {[%clk 0:02:49]} 9. Bg5 {[%clk 0:02:56.6]} 9... Be6 {[%clk 0:02:48]}
10. Nd2 {[%clk 0:02:47.4]} 10... Qc8 {[%clk 0:02:34.9]} 11. Nd5 {[%clk
0:02:33.1]} 11... Nd7 {[%clk 0:02:28.3]} 12. b4 {[%clk 0:02:17.5]} 12... h6
{[%clk 0:02:26.2]} 13. Be3 {[%clk 0:02:14.3]} 13... Re8 {[%clk 0:02:15.4]} 14.
a3 {[%clk 0:01:46.6]} 14... Nd8 {[%clk 0:02:09.5]} 15. Ne4 {[%clk 0:01:42]}
15... f5 {[%clk 0:01:50.5]} 16. Nc5 {[%clk 0:01:34.5]} 16... c6 {[%clk
0:01:43.9]} 17. Nxe6 {[%clk 0:01:28.2]} 17... Nxe6 {[%clk 0:01:43]} 18. Nc3
{[%clk 0:01:25.7]} 18... e4 {[%clk 0:01:42.1]} 19. Rc1 {[%clk 0:01:24.6]} 19...
a5 {[%clk 0:01:38.8]} 20. b5 {[%clk 0:00:56.4]} 20... Ne5 {[%clk 0:01:31.4]} 21.
Qb3 {[%clk 0:00:53.8]} 21... Ng4 {[%clk 0:01:30.1]} 22. Bb6 {[%clk 0:00:44.8]}
22... Kh7 {[%clk 0:01:07.1]} 23. Rfd1 {[%clk 0:00:27.4]} 23... Re7 {[%clk
0:01:05.3]} 24. h3 {[%clk 0:00:26.1]} 24... Ne5 {[%clk 0:01:03.2]} 25. Be3
{[%clk 0:00:26.5]} 25... Qf8 {[%clk 0:01:00.7]} 26. Na4 {[%clk 0:00:25.6]} 26...
f4 {[%clk 0:00:59.1]} 27. gxf4 {[%clk 0:00:23.3]} 27... Nxf4 {[%clk 0:00:59.2]}
28. Bf1 {[%clk 0:00:20.5]} 28... Qf5 {[%clk 0:00:57.5]} 29. Kh2 {[%clk
0:00:20.2]} 29... Rf7 {[%clk 0:00:50.9]} 30. bxc6 {[%clk 0:00:14.1]} 30... bxc6
{[%clk 0:00:50.5]} 31. Nb6 {[%clk 0:00:13]} 31... Raf8 {[%clk 0:00:50]} 32. Bc5
{[%clk 0:00:08.4]} 32... Ng4+ {[%clk 0:00:43.8]} 33. hxg4 {[%clk 0:00:07.8]}
33... Qxc5 {[%clk 0:00:44.2]} 34. Qe3 {[%clk 0:00:05.3]} 34... Qg5 {[%clk
0:00:39.4]} 35. Nd7 {[%clk 0:00:04.2]} 35... Qh4+ {[%clk 0:00:38.7]} 36. Kg1
{[%clk 0:00:04.7]} 36... Rxd7 {[%clk 0:00:36.6]} 37. Rxd7 {[%clk 0:00:03.6]}
37... Qxg4+ {[%clk 0:00:37]} 38. Kh1 {[%clk 0:00:03.1]} 38... Qxd7 {[%clk
0:00:37.9]} 0-1